bitfinex/quotes_ETHUSD_20260120
["timestamp","ask_amount","ask_price","bid_price","bid_amount"]
[1768927782569,10.76521032,3005.1,3004.0,6.6577896]
[1768927783344,10.76521032,3005.1,3003.9,7.19998755]
[1768927783958,10.77306209,3005.4,3004.0,11.42522178]
[1768927784174,0.543,3005.3,3004.2,11.42522178]
[1768927784375,0.543,3005.3,3004.4,11.42522178]
[1768927784882,0.543,3005.3,3004.5,11.42522178]
[1768927785576,3.32695314,3005.8,3004.5,11.42522178]
[1768927785577,11.93731832,3005.8,3004.5,11.42522178]
[1768927785878,11.93731832,3005.8,3004.7,10.68923419]
[1768927786046,11.93731832,3005.8,3004.8,0.542]
[1768927786253,11.93731832,3005.8,3003.9,10.68923419]
[1768927786254,11.39431832,3005.6,3003.9,10.68923419]
[1768927786457,0.543,3005.8,3003.9,10.68923419]
[1768927786458,11.39431832,3005.4,3003.9,10.68923419]
[1768927786694,0.543,3005.8,3004.2,10.68923419]
[1768927786695,13.07675015,3005.3,3004.2,10.68923419]
[1768927788175,1.68243183,3005.3,3004.2,10.68923419]
[1768927788363,11.39431832,3005.6,3004.2,10.68923419]
[1768927788557,11.39431832,3006.1,3004.4,10.68923419]
[1768927788799,11.93731832,3006.0,3004.6,10.68923419]
[1768927789463,11.93731832,3006.0,3004.7,0.542]
[1768927789883,11.93731832,3006.0,3004.7,11.23123419]
[1768927790083,11.39431832,3005.8,3004.8,1.12312342]
[1768927790295,0.543,3006.0,3004.8,11.81235761]
[1768927790481,0.37717113,3006.0,3004.9,10.68923419]
[1768927790695,0.37717113,3006.0,3005.0,3.32778702]
[1768927790893,0.37717113,3006.0,3005.0,6.65557404]
[1768927791092,0.37717113,3006.0,3005.1,1.61068677]
[1768927791408,11.77148945,3006.0,3005.1,1.61068677]
[1768927791705,11.77148945,3006.0,3004.9,6.65571721]
[1768927792380,11.77148945,3006.0,3004.9,3.32781945]
[1768927792773,11.77148945,3006.0,3004.9,6.65571721]
[1768927793093,11.77148945,3006.0,3004.9,3.32781945]
[1768927793297,11.77148945,3006.0,3004.9,17.3449514]
[1768927793500,11.77148945,3006.0,3005.0,1.84680748]
[1768927793897,0.001,3006.2,3005.1,10.68923419]
[1768927794200,0.543,3006.1,3005.1,10.68923419]
[1768927794516,0.544,3006.2,3005.1,11.23123419]
[1768927794807,0.544,3006.2,3005.2,6.6551311]
[1768927795010,0.544,3006.2,3005.3,11.5220369]
[1768927795808,0.001,3006.2,3005.3,11.5220369]
[1768927796980,0.001,3006.2,3005.5,10.68923419]
[1768927797704,0.001,3006.2,3005.5,11.23123419]
[1768927797888,11.39431832,3006.8,3005.6,10.68923419]
[1768927798220,11.39431832,3006.8,3005.8,10.68923419]
[1768927798221,0.543,3006.7,3005.8,10.68923419]
[1768927798408,11.93731832,3006.7,3005.7,1.12312342]
[1768927798606,11.93731832,3006.7,3005.5,11.23123419]
[1768927798924,11.93731832,3006.7,3005.4,9.98203233]
[1768927798925,11.93731832,3006.7,3005.4,3.32734411]
[1768927799234,11.93731832,3006.7,3005.4,6.65468822]
[1768927799424,11.93731832,3006.7,3005.3,1.37480271]
[1768927799425,11.39431832,3006.6,3005.3,4.16020356]
[1768927799725,12.58805015,3006.6,3005.3,4.16020356]
[1768927799887,12.58805015,3006.6,3005.3,18.17689257]
[1768927800086,11.39431832,3006.6,3005.4,10.68923419]
[1768927800394,3.32648673,3007.1,3005.3,7.48765838]
[1768927800395,0.001,3007.1,3006.0,10.68923419]
[1768927800591,0.001,3007.1,3006.2,10.68923419]
[1768927800800,0.001,3007.1,3006.5,10.68923419]
[1768927801006,11.39531832,3007.7,3006.7,10.68923419]
[1768927801007,0.001,3007.7,3006.7,10.68923419]
[1768927801187,0.001,3007.7,3007.1,10.68923419]
[1768927801384,0.001,3007.7,3007.1,11.23123419]
[1768927801580,0.001,3008.4,3007.2,10.92280449]
[1768927801818,0.001,3008.7,3007.7,10.68923419]
[1768927801983,0.001,3008.7,3007.9,10.68923419]
[1768927802186,11.39431832,3009.6,3008.0,0.2335703]
[1768927802385,11.93731832,3009.6,3008.1,10.68923419]
[1768927802584,11.39431832,3009.2,3007.8,1.14590793]
[1768927802909,11.39431832,3009.2,3007.3,11.23123419]
[1768927802910,11.39431832,3009.0,3007.3,11.23123419]
[1768927803118,11.39431832,3008.9,3007.4,3.32513134]
[1768927803325,11.39431832,3008.9,3007.4,0.542]
[1768927803627,11.39431832,3008.9,3007.4,11.23123419]
[1768927804001,11.93731832,3008.9,3007.4,11.23123419]
[1768927804201,13.13105015,3008.9,3007.5,1.78816889]
[1768927804398,13.13105015,3008.9,3007.6,0.541]
[1768927804800,13.13105015,3008.9,3007.5,2.32916889]
[1768927805007,13.13105015,3008.9,3007.5,0.541]
[1768927805227,11.39431832,3008.7,3007.5,3.32500896]
[1768927805397,11.39431832,3008.7,3007.6,0.541]
[1768927806942,11.39431832,3009.3,3007.9,10.68923419]
[1768927807242,1.13943183,3009.2,3008.1,10.68923419]
[1768927807442,11.39431832,3009.1,3008.0,0.541]
[1768927807609,11.39431832,3009.1,3007.0,3.32551162]
[1768927807610,11.39431832,3008.9,3007.6,3.32483365]
[1768927807810,3.32243041,3009.9,3007.6,3.32483365]
[1768927807811,11.39431832,3009.6,3008.0,10.68923419]
[1768927808028,11.39431832,3009.6,3007.7,6.68186564]
[1768927808029,1.68243183,3009.5,3008.2,10.68923419]
[1768927808307,13.07675015,3009.5,3008.2,10.68923419]
[1768927808710,13.07675015,3009.5,3008.1,8.25863548]
[1768927808711,11.39531832,3010.3,3008.3,10.92280449]
[1768927809019,11.93731832,3010.2,3008.6,10.68923419]
[1768927809221,11.93731832,3010.2,3008.9,17.33618157]
[1768927809416,1.19383183,3010.1,3009.0,1.73361816]
[1768927809614,11.39431832,3010.2,3009.0,12.42285235]
[1768927809844,11.39431832,3010.2,3009.1,10.92280449]
[1768927809845,0.543,3010.2,3009.1,10.92280449]
[1768927810135,0.001,3010.3,3009.0,1.73361816]
[1768927810136,11.39531832,3010.3,3009.0,12.96385235]
[1768927810307,11.39531832,3010.3,3009.2,10.68923419]
[1768927810308,0.001,3010.3,3009.2,10.68923419]
[1768927810506,0.001,3010.3,3009.3,11.68942622]
[1768927810737,11.39531832,3010.3,3009.0,1.73361816]
[1768927810940,11.39431832,3010.2,3008.9,3.32347369]
[1768927811161,11.39431832,3010.2,3008.9,6.64694738]
[1768927811330,0.001,3010.3,3008.8,3.32355228]
[1768927811331,0.001,3010.3,3009.2,10.68923419]
[1768927811549,0.001,3010.3,3009.1,9.96975837]
[1768927811550,0.001,3010.3,3009.3,12.75513345]
[1768927811848,0.001,3010.3,3009.4,10.92280449]
[1768927812032,0.543,3010.7,3009.6,10.68923419]
[1768927812235,0.543,3010.7,3009.8,10.68923419]
[1768927812614,0.543,3010.7,3009.3,8.5141946]
[1768927812615,11.93731832,3010.7,3009.3,2.06589926]
[1768927812918,11.93731832,3010.7,3009.1,6.64650558]
[1768927812919,11.39431832,3010.5,3009.1,6.64650558]
[1768927813523,11.39431832,3010.5,3009.0,17.33596067]
[1768927813827,0.543,3010.4,3009.1,10.68923419]
[1768927814026,11.39431832,3010.5,3009.1,10.68923419]
[1768927814027,0.543,3010.3,3009.1,10.68923419]
[1768927814243,11.93731832,3010.3,3009.0,3.32336324]
[1768927814435,11.39431832,3010.1,3009.0,7.3655105]
[1768927814837,0.543,3010.0,3009.1,10.97477411]
[1768927815451,0.543,3010.1,3009.2,17.62105883]
[1768927815661,0.543,3010.1,3009.2,14.29791647]
[1768927815960,11.35131995,3011.0,3009.5,10.97477411]
[1768927816117,11.35131995,3011.0,3009.7,10.97477411]
[1768927816315,0.543,3010.8,3009.7,10.97477411]
[1768927816551,11.35131995,3011.0,3009.7,10.97477411]
[1768927816552,11.05231995,3011.0,3009.7,10.97477411]
[1768927816717,0.543,3010.9,3009.7,10.97477411]
[1768927816917,1.15953199,3010.9,3009.8,12.18433496]
[1768927817119,0.543,3010.9,3009.8,12.18433496]
[1768927817319,0.128,3012.1,3009.8,12.18433496]
[1768927817320,11.35051995,3011.4,3010.0,10.97477411]
[1768927817557,0.5438,3011.3,3010.3,10.97477411]
[1768927817852,0.0008,3011.3,3010.3,10.97477411]
[1768927818029,0.5438,3011.3,3010.3,10.97477411]
[1768927818230,0.543,3011.2,3010.4,11.72832841]
[1768927818551,0.0008,3011.3,3010.4,11.72832841]
[1768927818846,0.5428,3011.3,3010.4,11.72832841]
[1768927819036,11.89331995,3011.3,3010.1,3.32214876]
[1768927819548,11.89331995,3011.3,3009.9,6.64473902]
[1768927820553,11.89331995,3011.3,3009.8,12.18433496]
[1768927820554,11.35051995,3011.2,3009.8,3.32247953]
[1768927821138,11.35051995,3011.0,3009.8,3.32247953]
[1768927821346,11.35051995,3010.8,3009.8,3.32247953]
[1768927821542,12.53977195,3010.7,3009.5,6.64562218]
[1768927822331,0.542,3010.6,3009.5,6.64562218]
[1768927822557,0.542,3010.5,3009.5,6.64562218]
[1768927822962,12.53977195,3010.7,3009.5,6.64562218]
[1768927823252,12.53977195,3010.7,3009.5,9.96843327]
[1768927823554,1.189252,3010.7,3009.7,20.94254498]
[1768927823757,0.0008,3011.3,3009.7,20.94254498]
[1768927823758,0.0008,3011.3,3010.4,10.97477411]
[1768927824132,0.542,3011.4,3010.4,10.97477411]
[1768927825328,0.542,3011.5,3010.4,10.97477411]
[1768927825581,11.35051995,3012.1,3010.7,20.93923418]
[1768927825777,11.35051995,3012.1,3010.8,10.97477411]
[1768927825778,0.542,3012.0,3010.8,10.97477411]
[1768927826142,11.89251995,3012.0,3010.8,10.97477411]
[1768927826343,11.35051995,3012.0,3010.8,10.97477411]
[1768927826546,0.542,3011.9,3010.8,10.97477411]
[1768927829482,0.1731252,3011.7,3010.8,6.64272379]
[1768927829639,0.001,3011.2,3010.6,9.96476086]
[1768927830067,0.542,3011.6,3010.7,10.97477411]
[1768927830373,0.542,3011.6,3010.6,6.64316384]
[1768927830572,11.35051995,3011.8,3010.6,6.64316384]
[1768927830780,0.542,3011.7,3010.7,0.61093546]
[1768927831179,0.542,3011.7,3010.7,11.58570957]
[1768927831351,0.542,3011.6,3010.7,11.58570957]
[1768927831547,11.35051995,3011.6,3010.5,1.09747741]
[1768927831753,11.89251995,3011.5,3010.3,3.32187986]
[1768927831984,11.89251995,3011.5,3010.7,3.32148669]
[1768927832190,11.89251995,3011.5,3010.7,6.64297338]
[1768927832387,11.89251995,3011.5,3010.3,10.97477411]
[1768927832388,11.35051995,3011.5,3010.5,3.3215989]
[1768927832692,1.135052,3011.8,3010.4,3.32177354]
[1768927832693,11.89251995,3011.4,3010.4,3.32177354]
[1768927832843,11.89251995,3011.4,3010.6,3.32158425]
[1768927832844,11.35051995,3011.4,3010.6,3.32158425]
[1768927833047,11.89251995,3011.3,3010.5,3.32165517]
[1768927833268,0.542,3011.2,3010.7,3.32145243]
[1768927833471,1.731252,3011.2,3010.7,3.32145243]
[1768927833983,1.731252,3011.2,3010.1,3.32212031]
[1768927834183,1.189252,3011.2,3010.1,14.29689442]
[1768927834488,0.542,3011.1,3010.1,14.29689442]
[1768927834691,0.542,3011.1,3010.1,10.97477411]
[1768927834985,1.8501772,3011.1,3010.1,10.97477411]
[1768927835187,1.3081772,3011.1,3010.1,10.97477411]
[1768927835375,0.542,3011.4,3010.4,10.97477411]
[1768927835979,0.542,3011.4,3010.5,17.61818881]
[1768927836761,11.35051995,3011.4,3010.5,6.6434147]
[1768927837753,11.35051995,3011.7,3010.5,6.6434147]
[1768927837958,0.542,3011.6,3010.6,10.97477411]
[1768927838576,11.89251995,3011.6,3010.5,6.6434147]
[1768927839282,11.89251995,3011.6,3010.5,9.96512205]
[1768927839485,11.89251995,3011.6,3010.6,10.97477411]
[1768927839857,0.542,3011.5,3010.7,6.64297338]
[1768927840060,0.542,3011.5,3010.7,3.32148669]
[1768927840384,1.731252,3011.5,3010.7,3.32148669]
[1768927840996,1.731252,3011.5,3010.7,6.64297338]
[1768927841164,13.08177195,3011.5,3010.7,6.64297338]
[1768927841592,1.189252,3011.5,3010.7,17.61774749]
[1768927841795,0.542,3011.6,3010.7,17.61774749]
[1768927842802,0.542,3012.0,3010.8,10.97477411]
[1768927842970,11.89251995,3012.0,3010.8,10.97477411]
[1768927844004,11.89251995,3012.0,3010.7,6.64297338]
[1768927844325,7.46225953,3012.4,3010.7,9.96446007]
[1768927844326,11.22539677,3011.9,3010.7,9.96446007]
[1768927844490,0.542,3011.8,3010.8,2.18740588]
[1768927844679,12.34793645,3011.9,3010.8,2.18940588]
[1768927844882,1.01396419,3012.4,3011.0,11.14515089]
[1768927844883,11.23585688,3012.2,3011.0,11.14515089]
[1768927845108,1.01396419,3012.4,3011.0,11.14515089]
[1768927845501,12.24982107,3012.4,3010.8,2.18940588]
[1768927845691,11.23585688,3012.3,3010.8,2.18940588]
[1768927846021,11.23585688,3012.3,3010.9,6.64253212]
[1768927846200,11.23585688,3012.1,3010.9,6.64253212]
[1768927846528,0.542,3012.0,3011.0,11.14515089]
[1768927847617,11.77785688,3012.0,3010.9,6.64253212]
[1768927848199,11.77785688,3012.0,3010.8,6.64475274]
[1768927848396,12.41364257,3011.9,3010.9,1.83309036]
[1768927848606,1.17778569,3011.9,3011.0,11.14515089]
[1768927848821,0.542,3011.8,3010.9,1.83309036]
[1768927849602,11.77785688,3011.8,3010.9,1.83309036]
[1768927849818,11.77785688,3011.8,3010.8,6.64475274]
[1768927850430,11.77785688,3011.8,3010.8,9.96612911]
[1768927850631,11.23585688,3011.8,3010.8,6.64475274]
[1768927850799,0.542,3011.7,3010.8,6.64475274]
[1768927851123,11.77785688,3011.7,3010.8,0.002]
[1768927851427,11.23585688,3011.5,3010.8,0.002]
[1768927854223,11.23585688,3011.5,3010.5,0.002]
[1768927854224,11.23585688,3011.4,3010.5,0.002]
[1768927854932,0.542,3011.3,3010.5,0.002]
[1768927855430,0.542,3011.2,3010.5,0.002]
[1768927855801,12.95564257,3011.2,3010.5,0.002]
[1768927856005,11.77785688,3011.2,3010.5,0.002]
[1768927858410,11.77785688,3011.2,3010.8,0.002]
[1768927859310,11.23585688,3011.2,3010.8,0.002]
[1768927859811,0.542,3011.3,3010.8,0.002]
[1768927860133,6.44829534,3012.7,3010.8,0.002]
[1768927860134,0.542,3011.4,3010.8,1.11671509]
[1768927860320,11.23585688,3011.3,3010.8,0.002]
[1768927860937,0.542,3011.2,3010.8,0.002]
[1768927862015,11.23585688,3012.2,3010.8,0.002]
[1768927862215,6.44829534,3012.7,3010.8,11.14715089]
[1768927862216,11.23585688,3012.1,3010.8,11.14715089]
[1768927862437,0.542,3012.0,3011.0,11.14515089]
[1768927862934,0.542,3012.0,3011.1,3.32104546]
[1768927863312,0.542,3012.0,3011.1,6.64209092]
[1768927863538,0.542,3011.9,3011.1,6.64209092]
[1768927863739,0.542,3011.9,3011.2,1.77872418]
[1768927864416,11.23585688,3012.8,3011.2,12.92387507]
[1768927864616,21.263786,3012.5,3011.0,3.32111378]
[1768927864816,11.23585688,3012.2,3011.0,3.32111378]
[1768927865022,3.59048,3012.3,3010.8,0.002]
[1768927865023,11.23585688,3012.0,3010.8,0.002]
[1768927865616,11.23585688,3011.8,3010.8,0.002]
[1768927865943,11.23585688,3011.8,3010.8,1.7810324]
[1768927866148,11.23585688,3011.8,3010.8,0.002]
[1768927866938,11.23585688,3011.6,3010.8,0.002]
[1768927867134,11.23585688,3011.4,3010.8,0.002]
[1768927868350,11.23585688,3011.4,3010.5,0.002]
[1768927868550,11.23585688,3011.2,3010.0,4.32218654]
[1768927868779,0.542,3011.5,3010.0,4.32218654]
[1768927868780,11.23585688,3011.0,3010.0,1.0]
[1768927868916,11.23585688,3010.6,3009.8,0.002]
[1768927869116,11.23585688,3010.4,3009.8,0.002]
[1768927869343,12.41364257,3010.3,3009.8,0.002]
[1768927870153,12.41364257,3010.3,3009.5,0.002]
[1768927870537,1.17778569,3010.3,3009.5,0.002]
[1768927870752,11.23585688,3010.6,3009.5,0.002]
[1768927870753,0.542,3010.2,3009.5,0.002]
[1768927873057,0.542,3010.1,3009.5,0.002]
[1768927873561,11.23585688,3011.3,3009.5,11.14715089]
[1768927873761,0.001,3011.5,3009.5,11.14715089]
[1768927873762,0.001,3011.5,3010.0,11.14515089]
[1768927873967,0.001,3011.5,3010.2,11.14515089]
[1768927874131,0.001,3011.5,3010.1,2.35371106]
[1768927874132,0.542,3011.9,3010.5,11.14515089]
[1768927874331,0.542,3011.9,3010.7,11.14515089]
[1768927874533,11.23585688,3012.2,3010.6,0.541]
[1768927874765,11.23585688,3012.0,3010.6,0.541]
[1768927875060,13.71244192,3011.9,3010.6,0.541]
[1768927875362,13.71244192,3011.9,3010.7,6.64297338]
[1768927875761,13.71244192,3011.9,3010.7,3.32148669]
[1768927876089,8.3601696,3011.9,3010.2,0.541]
[1768927876248,12.82867319,3011.8,3010.2,0.541]
[1768927876435,12.82867319,3011.8,3010.4,3.32174584]
[1768927876639,12.82867319,3011.8,3010.5,3.32169787]
[1768927876836,12.82867319,3011.8,3010.3,3.32191829]
[1768927877041,12.82867319,3011.8,3010.4,3.32179804]
[1768927877348,11.99265623,3011.6,3010.3,3.32191519]
[1768927877837,11.99265623,3011.6,3010.3,15.06667547]
[1768927878035,0.542,3011.5,3010.4,11.74476028]
[1768927878341,12.53465623,3011.5,3010.3,6.64384323]
[1768927878554,12.53465623,3011.5,3010.3,3.32191519]
[1768927878750,11.99265623,3011.3,3010.3,3.32191519]
[1768927879076,11.99265623,3011.3,3010.1,3.32212617]
[1768927879380,11.99265623,3011.3,3009.9,15.06712979]
[1768927879563,11.99265623,3011.3,3009.9,18.3894993]
[1768927879942,11.99265623,3011.2,3009.9,18.3894993]
[1768927880135,11.99265623,3011.6,3010.0,11.74476028]
[1768927880347,0.542,3011.5,3010.2,11.74476028]
[1768927880562,0.542,3011.4,3010.4,11.74476028]
[1768927881463,0.542,3011.4,3010.4,15.06646907]
[1768927881655,12.53465623,3011.4,3010.3,4.55045807]
[1768927881957,12.53465623,3011.4,3010.0,3.32216611]
[1768927881958,11.99265623,3011.3,3010.0,3.32216611]
[1768927882152,11.99265623,3011.1,3010.1,3.32211556]
[1768927882466,1.58554377,3011.2,3010.3,3.3219273]
[1768927882671,0.542,3011.0,3010.4,0.002]
[1768927883568,11.99265623,3010.9,3010.4,0.002]
[1768927886596,11.99265623,3011.2,3010.4,0.002]
[1768927886770,0.542,3010.8,3010.4,0.002]
[1768927887294,12.53465623,3010.8,3010.4,0.002]
[1768927887498,1.25346562,3010.7,3009.7,3.32259029]
[1768927887662,13.24612185,3010.7,3009.5,3.32479094]
[1768927887862,13.24612185,3010.7,3009.5,0.002]
[1768927888497,11.99265623,3010.6,3009.5,0.002]
[1768927889658,11.99265623,3010.6,3009.5,11.74676028]
[1768927889862,0.542,3010.5,3009.5,13.58602061]
[1768927890057,0.542,3010.5,3009.7,11.74476028]
[1768927890286,0.542,3010.5,3009.5,1.84126033]
[1768927890287,12.53465623,3010.5,3009.5,1.84126033]
[1768927890489,12.53465623,3010.5,3009.5,3.32478596]
[1768927891268,11.99265623,3011.4,3009.5,18.39235733]
[1768927891468,11.99265623,3011.4,3009.6,11.74476028]
[1768927891469,11.99265623,3010.9,3009.6,11.74476028]
[1768927891693,0.542,3010.8,3009.6,11.74476028]
[1768927891872,0.542,3010.8,3009.7,2.17151684]
[1768927891873,12.53465623,3010.8,3009.7,2.17151684]
[1768927892196,11.99265623,3010.6,3009.5,0.002]
[1768927893192,6.64297338,3010.7,3009.2,0.002]
[1768927893193,11.99265623,3010.4,3009.2,0.002]
[1768927893497,11.99265623,3010.2,3009.2,0.002]
[1768927893661,11.99265623,3010.0,3009.2,0.002]
[1768927893862,0.542,3009.9,3009.2,0.002]
[1768927894190,9.96446007,3010.7,3009.1,0.002]
[1768927894191,11.99265623,3009.7,3009.1,0.002]
[1768927894491,12.53465623,3009.6,3009.1,0.002]
[1768927894692,12.53465623,3009.6,3008.0,0.002]
[1768927894693,11.99265623,3009.4,3008.2,15.07093793]
[1768927895194,11.99265623,3009.4,3008.2,0.002]
[1768927895692,11.99265623,3009.4,3008.2,3.3262411]
[1768927895888,11.99265623,3009.4,3008.2,0.002]
[1768927896397,11.99265623,3009.4,3009.1,0.002]
[1768927896573,11.99265623,3009.2,3008.2,0.002]
[1768927896778,11.99265623,3009.0,3008.2,0.002]
[1768927898465,11.99265623,3009.3,3008.2,0.002]
[1768927898670,0.543,3009.2,3008.2,11.74676028]
[1768927898882,0.543,3009.2,3008.3,1.17467603]
[1768927899491,12.53565623,3009.2,3008.3,1.17467603]
[1768927899685,12.53565623,3009.2,3008.2,0.002]
[1768927900967,11.99265623,3009.1,3008.2,0.002]
[1768927902510,11.99265623,3008.7,3008.0,0.002]
[1768927902804,11.99265623,3008.5,3008.0,0.002]
[1768927902999,1.25356562,3008.5,3008.0,11.74676028]
[1768927903169,0.543,3008.8,3008.0,11.74676028]
[1768927903698,0.543,3008.8,3008.0,0.002]
[1768927904414,10.91335794,3010.0,3008.0,11.96942603]
[1768927904577,11.45635794,3009.9,3008.2,11.42642603]
[1768927904779,12.93421965,3009.8,3008.4,11.42642603]
[1768927905498,11.04740768,3009.6,3008.1,14.70732913]
[1768927906295,11.04740768,3009.6,3008.1,18.03168669]
[1768927906905,11.04740768,3009.5,3008.1,18.03168669]
[1768927907204,11.04740768,3009.3,3008.1,14.70732913]
[1768927907384,11.04740768,3009.1,3008.1,3.32435756]
[1768927907584,11.04740768,3009.1,3008.1,6.64871512]
[1768927907789,0.543,3009.0,3008.1,6.64871512]
[1768927907991,0.543,3009.0,3008.1,3.32435756]
[1768927908478,11.04740768,3008.9,3008.0,0.002]
[1768927908682,11.04740768,3008.7,3008.0,0.002]
[1768927908882,1.15904077,3008.8,3008.0,0.002]
[1768927908883,11.04740768,3008.5,3008.0,0.002]
[1768927909120,11.04740768,3008.5,3008.1,0.002]
[1768927909322,11.04740768,3008.5,3008.0,0.002]
[1768927909611,11.04740768,3008.5,3007.9,0.002]
[1768927909778,12.53882172,3008.5,3007.9,0.002]
[1768927910615,0.543,3008.4,3007.9,0.002]
[1768927910816,11.59040768,3008.4,3007.9,0.002]
[1768927911004,11.04740768,3008.2,3007.6,0.002]
[1768927911513,11.04740768,3008.2,3006.9,0.002]
[1768927911821,11.04740768,3008.2,3007.1,3.32544188]
[1768927912486,11.04740768,3008.2,3006.9,3.32758869]
[1768927912823,11.04740768,3008.2,3007.0,3.32551943]
[1768927913122,11.04740768,3008.0,3006.9,3.32764093]
[1768927913425,11.59040768,3007.9,3006.9,0.002]
[1768927914200,11.04740768,3007.7,3006.9,0.002]
[1768927914400,11.04740768,3007.5,3006.9,0.002]
[1768927914615,11.04740768,3007.3,3006.9,0.002]
[1768927915319,1.10474077,3007.6,3006.9,0.002]
[1768927915511,11.04740768,3008.0,3006.9,11.38497157]
[1768927915722,0.543,3007.9,3006.9,11.38497157]
[1768927916223,0.543,3007.8,3006.9,11.38497157]
[1768927917923,11.04740768,3008.5,3007.0,11.38297157]
[1768927918236,11.04740768,3008.3,3007.0,11.38297157]
[1768927918408,11.59040768,3008.2,3007.2,11.38297157]
[1768927918603,11.04740768,3008.2,3007.2,11.38297157]
[1768927918842,7.35838519,3008.7,3007.1,1.47106346]
[1768927918843,11.59040768,3008.1,3007.1,1.47106346]
[1768927919049,11.59040768,3008.1,3006.9,11.38497157]
[1768927919344,10.764504,3008.0,3006.9,0.002]
[1768927919508,11.04740768,3007.9,3006.9,0.002]
[1768927919803,11.04740768,3007.8,3006.9,0.002]
[1768927920008,3.32462616,3007.9,3006.9,0.002]
[1768927920009,11.04740768,3007.6,3006.9,0.002]
[1768927921238,11.04740768,3007.6,3007.2,0.002]
[1768927921538,11.04740768,3007.4,3006.4,0.002]
[1768927921836,15.69126,3007.5,3006.4,0.002]
[1768927921837,11.04740768,3007.2,3006.4,0.002]
[1768927922406,11.04740768,3007.1,3006.4,0.002]
[1768927922606,0.543,3007.3,3006.4,0.002]
[1768927922802,1.70204077,3007.2,3006.4,11.38497157]
[1768927923006,0.543,3007.2,3006.4,11.38497157]
[1768927923741,0.543,3007.2,3006.4,14.71119371]
[1768927924235,0.543,3007.2,3006.4,11.38497157]
[1768927924835,0.543,3007.2,3006.4,14.71120707]
[1768927925135,0.543,3007.2,3006.4,11.38497157]
[1768927925336,1.70204077,3007.2,3006.4,11.38497157]
[1768927925504,1.70204077,3007.2,3006.4,14.71120092]
[1768927925705,1.70204077,3007.2,3006.4,11.38497157]
[1768927926405,1.70204077,3007.2,3006.4,0.002]
[1768927926724,0.543,3007.1,3006.4,3.32823407]
[1768927926943,0.543,3007.0,3006.4,19.84119643]
[1768927927135,11.04740768,3007.7,3006.5,11.38297157]
[1768927927308,0.543,3007.6,3006.5,11.38297157]
[1768927927832,11.59040768,3007.6,3006.5,11.38297157]
[1768927928135,11.59040768,3007.6,3006.4,5.1319875]
[1768927928136,11.04740768,3007.5,3006.4,0.002]
[1768927929337,11.04740768,3007.5,3006.4,14.71118382]
[1768927929647,11.04740768,3007.8,3006.6,11.38297157]
[1768927929809,0.543,3007.7,3006.8,11.38297157]
[1768927930758,0.543,3007.6,3006.8,11.38297157]
[1768927930963,0.543,3007.7,3007.0,11.38297157]
[1768927931837,0.001,3007.9,3007.0,14.70846498]
[1768927932067,0.001,3007.9,3007.0,18.03403864]
[1768927932232,0.543,3007.8,3007.0,18.03403864]
[1768927932438,0.001,3007.9,3007.1,11.38297157]
[1768927932762,0.001,3007.9,3007.0,6.65106707]
[1768927932763,0.001,3007.9,3007.3,11.38297157]
[1768927933963,0.001,3007.9,3007.3,14.70813298]
[1768927934176,0.001,3007.9,3007.2,1.80340386]
[1768927934488,11.04840768,3007.9,3006.8,0.002]
[1768927934688,11.04740768,3007.7,3006.8,0.002]
[1768927934995,0.001,3007.3,3006.8,0.002]
[1768927935158,0.544,3007.3,3006.8,0.002]
[1768927936385,0.001,3007.3,3006.8,0.002]
[1768927936682,0.544,3007.3,3006.8,0.002]
[1768927937464,0.001,3007.3,3006.8,0.002]
[1768927937695,0.544,3007.3,3006.8,0.002]
[1768927938655,0.001,3007.3,3006.8,0.002]
[1768927938991,0.001,3007.3,3006.8,11.6880318]
[1768927939556,0.001,3007.9,3006.8,11.6880318]
[1768927939763,0.544,3007.9,3006.8,11.6880318]
[1768927940086,0.544,3007.9,3006.9,10.62348345]
[1768927940282,11.97892202,3007.9,3006.9,10.62348345]
[1768927940482,13.17681422,3007.9,3006.9,11.79228663]
[1768927942062,11.43492202,3007.8,3006.9,1.16880318]
[1768927942263,11.43492202,3007.8,3006.8,1.06454835]
[1768927942460,11.43492202,3007.8,3006.8,4.39029036]
[1768927942801,11.43492202,3007.8,3006.8,1.06454835]
[1768927943597,11.43492202,3007.8,3006.8,11.6880318]
[1768927943788,12.75260344,3007.8,3006.9,10.62348345]
[1768927945097,11.43492202,3007.7,3006.8,1.06454835]
[1768927946074,11.43492202,3007.7,3006.8,0.002]
[1768927947395,11.43492202,3007.6,3006.5,4.1e-06]
[1768927947579,11.43492202,3007.4,3006.5,4.1e-06]
[1768927948798,11.43492202,3007.3,3006.5,4.1e-06]
[1768927949802,11.43492202,3007.3,3006.4,0.002]
[1768927950007,11.43492202,3007.1,3006.4,0.002]
[1768927950210,11.97792202,3007.0,3006.4,0.002]
[1768927950516,1.80851862,3007.2,3006.5,10.62348345]
[1768927950517,2.35151862,3007.2,3006.5,10.62348345]
[1768927950879,11.43492202,3007.4,3006.5,10.62348345]
[1768927951083,0.543,3007.3,3006.5,10.62348345]
[1768927951604,0.543,3007.3,3006.6,10.62348345]
[1768927954029,11.97792202,3007.3,3006.5,3.88]
[1768927954915,11.97792202,3007.3,3006.5,14.50348345]
[1768927955084,11.43492202,3007.2,3006.4,0.002]
[1768927956306,11.43492202,3007.2,3006.4,10.62548345]
[1768927957630,0.71141627,3007.3,3006.5,10.62348345]
[1768927957791,0.543,3007.1,3006.5,10.62348345]
[1768927959726,0.001,3006.9,3006.5,10.62348345]
[1768927960033,0.001,3006.9,3006.5,13.94960211]
[1768927960526,0.001,3007.6,3006.6,10.62348345]
[1768927960693,0.543,3007.4,3006.6,10.62348345]
[1768927960892,0.543,3007.4,3006.7,10.62348345]
[1768927962023,0.544,3007.6,3006.7,10.62348345]
[1768927962232,0.001,3007.6,3006.7,10.62348345]
[1768927962414,0.001,3007.6,3006.9,10.62348345]
[1768927963318,0.001,3007.6,3007.0,10.62348345]
[1768927965544,0.001,3007.6,3007.1,10.74315222]
[1768927965896,10.41510671,3008.5,3007.4,10.74315222]
[1768927966195,10.95810671,3009.0,3007.4,10.74315222]
[1768927966497,11.51091738,3008.9,3007.6,10.74315222]